bitfinex-derivatives/quotes_BTCF0:USTF0_20250427
["timestamp","ask_amount","ask_price","bid_price","bid_amount"]
[1745730429195,0.1528,94210.0,94209.0,0.212226]
[1745730429795,0.12,94210.0,94209.0,0.573026]
[1745730429996,0.0736883,94210.0,94209.0,0.573026]
[1745730430305,1e-08,94218.0,94217.0,0.2122079]
[1745730430506,1e-08,94218.0,94217.0,0.5730079]
[1745730430810,1e-08,94218.0,94217.0,0.8083839]
[1745730431197,1e-08,94218.0,94217.0,0.9283839]
[1745730432105,1e-08,94218.0,94217.0,0.8083839]
[1745730432308,0.00200001,94218.0,94217.0,0.8083839]
[1745730433512,0.00200001,94218.0,94217.0,0.7419439]
[1745730433703,0.00200001,94218.0,94217.0,0.8083839]
[1745730437713,1e-08,94218.0,94217.0,0.8083839]
[1745730438607,1e-08,94218.0,94217.0,0.8083439]
[1745730440801,0.0623,94238.0,94230.0,0.0530442]
[1745730441001,0.0322,94234.0,94233.0,0.0530429]
[1745730441206,0.0322,94234.0,94233.0,0.2652148]
[1745730441813,0.0322,94234.0,94233.0,0.2982148]
[1745730442005,0.0322,94234.0,94233.0,0.3292148]
[1745730442209,0.1522,94234.0,94233.0,0.3292148]
[1745730442409,0.1562,94234.0,94233.0,0.3292148]
[1745730443325,0.0362,94234.0,94233.0,0.3292148]
[1745730443814,0.0362,94234.0,94233.0,0.3956148]
[1745730444207,0.0352,94234.0,94233.0,0.3956148]
[1745730444903,0.0352,94234.0,94233.0,0.7564148]
[1745730449612,0.0352,94234.0,94233.0,0.3956148]
[1745730449808,0.0352,94234.0,94233.0,0.7564148]
[1745730451807,0.0342,94234.0,94233.0,0.7564148]
[1745730455110,0.0342,94234.0,94233.0,0.3956148]
[1745730455308,0.0342,94234.0,94233.0,0.7564148]
[1745730457206,0.1542,94234.0,94233.0,0.7564148]
[1745730458213,0.0342,94234.0,94233.0,0.7564148]
[1745730461514,0.00809667,94244.0,94233.0,0.7564148]
[1745730461515,1e-08,94248.0,94247.0,0.2121404]
[1745730461713,1e-08,94248.0,94247.0,0.5729404]
[1745730462317,1e-08,94248.0,94243.0,0.0530368]
[1745730462522,1e-08,94248.0,94247.0,0.2121404]
[1745730462909,0.00200001,94248.0,94247.0,0.2121404]
[1745730463316,0.12200001,94248.0,94247.0,0.2121404]
[1745730469925,0.29090401,94248.0,94240.0,0.0530389]
[1745730470114,0.29090401,94248.0,94242.0,0.2121505]
[1745730470115,0.2651916,94243.0,94242.0,0.2121505]
[1745730471027,0.3603916,94243.0,94242.0,0.2121505]
[1745730471222,0.4803916,94243.0,94242.0,0.2121505]
[1745730472530,0.2652175,94234.0,94233.0,0.2121629]
[1745730472926,0.2652253,94231.0,94230.0,0.2121778]
[1745730473122,0.3852253,94231.0,94230.0,0.2121778]
[1745730473318,0.4383049,94231.0,94230.0,0.2121778]
[1745730474127,0.3321809,94231.0,94230.0,0.2121778]
[1745730476930,0.3321809,94231.0,94230.0,0.2131778]
[1745730477324,0.3321809,94231.0,94230.0,0.2121778]
[1745730479428,0.3321809,94231.0,94230.0,0.2131778]
[1745730479632,0.3321809,94231.0,94230.0,0.2121778]
[1745730480219,0.2121809,94229.0,94228.0,0.0015917]
[1745730481024,0.2745809,94229.0,94228.0,0.0015917]
[1745730481331,0.3945809,94229.0,94228.0,0.0015917]
[1745730481520,0.2652535,94222.0,94221.0,0.0530495]
[1745730482026,0.3183036,94222.0,94221.0,0.2652484]
[1745730482220,0.4383036,94222.0,94221.0,0.2652484]
[1745730482426,0.2122034,94219.0,94218.0,0.0664]
[1745730483228,0.3322034,94219.0,94218.0,0.2786057]
[1745730484030,0.3322034,94219.0,94218.0,0.2806057]
[1745730485934,0.3322034,94219.0,94218.0,0.0684]
[1745730489237,0.3322034,94219.0,94218.0,0.002]
[1745730492443,0.2122079,94217.0,94216.0,0.0313]
[1745730493335,0.3322079,94217.0,94216.0,0.0313]
[1745730493535,0.3322079,94217.0,94216.0,0.0645]
[1745730493735,0.3322079,94217.0,94216.0,0.0655]
[1745730494336,0.3322079,94217.0,94216.0,0.2777102]
[1745730495237,0.3322079,94217.0,94216.0,0.0655]
[1745730495431,0.3651079,94217.0,94216.0,0.0655]
[1745730496437,0.3651079,94217.0,94216.0,0.0323]
[1745730496933,0.3651079,94217.0,94216.0,0.001]
[1745730497730,0.212235,94205.0,94204.0,0.0664]
[1745730497934,0.212235,94205.0,94196.0,0.0664]
[1745730497935,0.2122395,94203.0,94196.0,0.0664]
[1745730498136,0.3322395,94203.0,94196.0,0.0664]
[1745730498439,0.3322395,94203.0,94197.0,0.2438522]
[1745730498745,0.3322395,94203.0,94197.0,0.0316]
[1745730499038,0.38326523,94203.0,94198.0,0.0327]
[1745730499231,0.2122485,94199.0,94198.0,0.0327]
[1745730500034,0.3322485,94199.0,94198.0,0.0327]
[1745730500831,0.3956485,94199.0,94198.0,0.0327]
[1745730501939,0.3956485,94199.0,94198.0,0.0337]
[1745730518553,0.3645485,94199.0,94198.0,0.2459507]
[1745730518744,0.12,94199.0,94198.0,0.6067507]
[1745730518940,0.12,94199.0,94198.0,0.7129107]
[1745730519251,0.0530561,94210.0,94209.0,0.3183277]
[1745730519441,0.6260752,94214.0,94213.0,0.2122169]
[1745730519641,0.2122282,94208.0,94207.0,0.3604789]
[1745730520050,0.2122282,94208.0,94207.0,0.0952]
[1745730520245,0.3322282,94208.0,94207.0,0.0952]
[1745730520645,0.3322282,94208.0,94207.0,0.3074305]
[1745730520846,0.3332282,94208.0,94207.0,0.3074305]
[1745730521151,0.3650282,94208.0,94207.0,0.3074305]
[1745730521745,0.3650282,94208.0,94207.0,0.063]
[1745730521950,0.3640282,94208.0,94207.0,0.064]
[1745730522145,0.3640282,94208.0,94207.0,0.2762305]
[1745730522953,0.3640282,94208.0,94207.0,0.29226633]
[1745730525350,0.3640282,94208.0,94207.0,0.2762305]
[1745730534456,0.3640282,94208.0,94207.0,0.2447305]
[1745730544163,0.3640282,94208.0,94207.0,0.0325]
[1745730544370,0.2122507,94198.0,94190.0,0.05412878]
[1745730544558,0.2122643,94193.0,94192.0,0.2122622]
[1745730544761,0.2122643,94193.0,94192.0,0.2452622]
[1745730545155,0.3322643,94193.0,94192.0,0.2452622]
[1745730545755,0.3430064,94193.0,94192.0,0.2452622]
[1745730545957,0.3430064,94193.0,94192.0,0.2753622]
[1745730546158,0.3736064,94193.0,94192.0,0.2753622]
[1745730546760,0.3736064,94193.0,94192.0,0.2793622]
[1745730547166,0.3628643,94193.0,94192.0,0.2793622]
[1745730554074,0.0311,94198.0,94192.0,0.2793622]
[1745730554075,0.3608,94237.0,94192.0,1.314894]
[1745730554273,0.0323,94219.0,94209.0,0.933826]
[1745730554568,0.0635,94226.0,94209.0,0.573026]
[1745730554569,0.0307,94226.0,94209.0,0.573026]
[1745730554762,0.2121956,94223.0,94209.0,0.573026]
[1745730554958,0.0323,94224.0,94209.0,0.58962021]
[1745730555161,0.0323,94224.0,94209.0,0.77162021]
[1745730555370,0.04317657,94224.0,94209.0,0.78821374]
[1745730555576,0.00806544,94215.0,94209.0,0.78821413]
[1745730556169,0.00806544,94215.0,94209.0,0.66821413]
[1745730556961,0.00806544,94215.0,94209.0,0.67221413]
[1745730557264,0.5729842,94228.0,94209.0,0.67221413]
[1745730557473,0.0315,94222.0,94209.0,0.66821413]
[1745730557778,0.07451451,94220.0,94209.0,0.67221417]
[1745730558072,0.07451451,94220.0,94209.0,0.65162064]
[1745730558269,0.0315,94219.0,94209.0,0.65562049]
[1745730558667,0.0315,94219.0,94218.0,0.2122057]
[1745730559173,0.1515,94219.0,94218.0,0.2122057]
[1745730559366,0.15940545,94219.0,94218.0,0.2122057]
[1745730559562,0.15940545,94219.0,94218.0,0.2452057]
[1745730560067,0.1515,94219.0,94218.0,0.2452057]
[1745730560268,0.1515,94219.0,94218.0,0.2482057]
[1745730566676,0.1515,94219.0,94218.0,0.2152057]
[1745730566977,0.3637034,94219.0,94218.0,0.2152057]
[1745730568975,0.3637034,94219.0,94218.0,0.2482057]
[1745730570276,0.3948034,94219.0,94218.0,0.2482057]
[1745730574390,0.1826,94219.0,94218.0,0.2482057]
[1745730574684,0.3948034,94219.0,94218.0,0.2482057]
[1745730585090,0.3948034,94219.0,94218.0,0.2152057]
[1745730585391,0.3948034,94219.0,94218.0,0.003]
[1745730585593,0.3948034,94219.0,94218.0,0.2152057]
[1745730586091,0.212226,94209.0,94208.0,0.3608]
[1745730586397,0.2122651,94198.0,94197.0,0.318363]
[1745730586691,0.2122651,94198.0,94197.0,0.2652998]
[1745730586891,0.2653303,94198.0,94197.0,0.2652998]
[1745730587095,0.3853303,94198.0,94197.0,0.2652998]
[1745730587598,0.39609301,94198.0,94197.0,0.2652998]
[1745730588883,0.3853303,94198.0,94197.0,0.2652998]
[1745730589286,0.3863303,94198.0,94197.0,0.2652998]
[1745730589999,0.4804303,94198.0,94197.0,0.2652998]
[1745730591292,0.4784303,94198.0,94197.0,0.2652998]
[1745730591596,0.4794303,94198.0,94197.0,0.2652998]
[1745730594695,0.4784303,94198.0,94197.0,0.2652998]
[1745730594897,0.4794303,94198.0,94197.0,0.2652998]
[1745730599701,0.4784303,94198.0,94197.0,0.2122386]
[1745730599911,0.4794303,94198.0,94197.0,0.2122386]
[1745730600797,0.0530643,94196.0,94190.0,0.00106168]
[1745730600997,0.2122643,94192.0,94191.0,0.2430575]
[1745730601197,0.3322643,94192.0,94191.0,0.2430575]
[1745730601801,0.3322643,94192.0,94191.0,0.2961236]
[1745730601999,0.3322643,94192.0,94191.0,0.0338]
[1745730602204,0.0530709,94184.0,94179.0,0.0304]
[1745730602399,0.5730913,94180.0,94179.0,0.0304]
[1745730602595,0.2122913,94180.0,94179.0,0.2426936]
[1745730602800,0.2123003,94177.0,94176.0,0.2122999]
[1745730603198,0.2123003,94176.0,94175.0,0.0304]
[1745730603496,0.2123026,94175.0,94174.0,0.2123044]
[1745730603702,0.2762026,94175.0,94174.0,0.2432044]
[1745730604101,0.3962026,94175.0,94174.0,0.2432044]
[1745730604309,0.3962026,94175.0,94174.0,0.0309]
[1745730604809,0.2123048,94174.0,94170.0,0.3608]
[1745730605111,0.3656048,94174.0,94173.0,0.21389972]
[1745730605296,0.3985048,94174.0,94173.0,0.21389972]
[1745730606303,0.3995048,94174.0,94173.0,0.21789972]
[1745730607505,0.40751007,94174.0,94173.0,0.21789972]
[1745730608210,0.28751007,94174.0,94173.0,0.00559262]
[1745730609101,0.40751007,94174.0,94173.0,0.00559262]
[1745730609907,0.40751007,94174.0,94173.0,0.21789972]
[1745730611010,0.40751007,94174.0,94173.0,0.00559262]
[1745730611308,0.28751007,94174.0,94173.0,0.00559262]
[1745730613604,0.28751007,94174.0,94173.0,0.21789972]
[1745730614512,0.28751007,94174.0,94173.0,0.27999972]
[1745730616006,0.25421007,94174.0,94173.0,0.27999972]
[1745730618207,0.25421007,94174.0,94173.0,0.39999972]
[1745730619214,0.25421007,94174.0,94173.0,0.27999972]
[1745730626515,0.28601007,94174.0,94173.0,0.27999972]
[1745730630914,0.28601007,94174.0,94173.0,0.21789972]
[1745730631310,0.28601007,94174.0,94173.0,0.00559262]
[1745730631712,0.0530788,94170.0,94162.0,0.212331]
[1745730632016,0.54069327,94174.0,94162.0,0.212331]
[1745730632017,0.5731296,94163.0,94162.0,0.212331]
[1745730632408,0.5731296,94163.0,94161.0,0.0311]
[1745730632409,0.2123319,94162.0,94161.0,0.0311]
[1745730632715,0.2766319,94162.0,94161.0,0.0311]
[1745730632920,0.2123341,94161.0,94160.0,0.00106202]
[1745730633316,0.2766341,94161.0,94160.0,0.00106202]
[1745730634314,0.2776341,94161.0,94160.0,0.00506202]
[1745730635213,0.6384341,94161.0,94160.0,0.00506202]
[1745730636522,0.6424341,94161.0,94160.0,0.00206202]
[1745730636719,0.4301,94161.0,94151.0,0.273155]
[1745730636923,0.2123522,94153.0,94152.0,0.0323]
[1745730637120,0.5731522,94153.0,94152.0,0.0629]
[1745730637712,0.6388522,94153.0,94152.0,0.0629]
[1745730638626,0.6388522,94153.0,94152.0,0.2752544]
[1745730639422,0.6418522,94153.0,94152.0,0.2762544]
[1745730639816,0.6388522,94153.0,94152.0,0.2752544]
[1745730640011,0.6418522,94153.0,94152.0,0.2762544]
[1745730641115,0.6418522,94153.0,94152.0,0.0639]
[1745730642114,0.6418522,94153.0,94152.0,0.001]
[1745730642315,0.2654592,94148.0,94147.0,0.2123635]
[1745730643125,0.2975592,94148.0,94147.0,0.3323635]
[1745730643326,0.3299592,94148.0,94147.0,0.3323635]
[1745730643516,0.3329592,94148.0,94147.0,0.121]
[1745730643916,0.3329592,94148.0,94147.0,0.1828]
[1745730644130,0.3329592,94148.0,94147.0,0.2751657]
[1745730645124,0.3319592,94148.0,94147.0,0.2741657]
[1745730645623,0.3329592,94148.0,94147.0,0.2741657]
[1745730648922,0.3319592,94148.0,94147.0,0.2741657]
[1745730649120,0.3319592,94148.0,94147.0,0.3941657]
[1745730649523,0.3329592,94148.0,94147.0,0.3941657]
[1745730649917,0.3299592,94148.0,94147.0,0.3941657]
[1745730650121,0.3319592,94148.0,94147.0,0.3941657]
[1745730651333,0.3319592,94148.0,94147.0,0.2741657]
[1745730651928,0.6927592,94148.0,94147.0,0.2741657]
[1745730652617,0.6907592,94148.0,94147.0,0.2741657]
[1745730652817,0.6937592,94148.0,94147.0,0.2741657]
[1745730653219,0.6927592,94148.0,94147.0,0.2741657]
[1745730653424,0.6927592,94148.0,94147.0,0.0618]
[1745730653823,0.6937592,94148.0,94147.0,0.0618]
[1745730654718,0.6937592,94148.0,94147.0,0.2741657]
[1745730654916,0.6937592,94148.0,94142.0,0.21396368]
[1745730654917,0.2123747,94143.0,94142.0,0.21396368]
[1745730655124,0.2123747,94143.0,94142.0,0.24576368]
[1745730655330,0.2123747,94143.0,94142.0,0.27636368]
[1745730656017,0.2143747,94143.0,94142.0,0.27636368]
[1745730656425,0.2123747,94143.0,94142.0,0.27636368]
[1745730656726,0.2133747,94143.0,94142.0,0.27636368]
[1745730657131,0.2143747,94143.0,94142.0,0.39636368]
[1745730658033,0.2655005,94135.0,94134.0,0.2654935]
[1745730658230,0.6263005,94135.0,94134.0,0.3297935]
[1745730659331,0.6273005,94135.0,94134.0,0.4507935]
[1745730667546,0.6273005,94135.0,94134.0,0.121]
[1745730667745,0.6273005,94135.0,94134.0,0.333395]
[1745730668239,0.6273005,94135.0,94134.0,0.213395]
[1745730669241,0.6273005,94135.0,94134.0,0.333395]
[1745730669637,0.6273005,94135.0,94134.0,0.365695]
[1745730671240,0.6273005,94135.0,94134.0,0.245695]
[1745730672143,0.6273005,94135.0,94134.0,0.365695]
[1745730675246,0.6273005,94135.0,94134.0,0.333395]
[1745730676148,0.6273005,94135.0,94134.0,0.213395]
[1745730677055,0.6273005,94135.0,94134.0,0.333395]
[1745730679241,0.6273005,94135.0,94134.0,0.364395]
[1745730681148,0.3618,94135.0,94134.0,0.364395]
[1745730681549,0.3618,94135.0,94134.0,0.470627]
[1745730684044,0.3618,94135.0,94134.0,0.48142426]
[1745730691153,0.4818,94135.0,94134.0,0.36142426]
[1745730692154,0.4818,94135.0,94134.0,0.25519226]
[1745730692351,0.121,94135.0,94134.0,0.25519226]
[1745730696664,0.121,94135.0,94134.0,0.244395]
[1745730698563,0.121,94135.0,94134.0,0.25486259]
[1745730699163,0.00389037,95235.0,94134.0,0.14869959]
[1745730699164,0.3608,94162.0,94134.0,0.14869959]
[1745730699367,0.3608,94162.0,94161.0,0.2123341]
[1745730699569,0.5731336,94162.0,94161.0,0.2123341]
[1745730700159,0.6931336,94162.0,94161.0,0.2123341]
[1745730700563,0.6991336,94162.0,94161.0,0.2123341]
[1745730700969,0.7604336,94162.0,94161.0,0.2123341]
[1745730704470,0.1873,94162.0,94161.0,0.2123341]
[1745730708070,0.3996319,94162.0,94161.0,0.2123341]
[1745730718772,0.1873,94162.0,94161.0,0.2123341]
[1745730719771,0.3996319,94162.0,94161.0,0.2123341]
[1745730721264,0.1873,94162.0,94161.0,0.2123341]
[1745730721671,0.3996319,94162.0,94161.0,0.2123341]
[1745730725078,0.1873,94162.0,94161.0,0.2123341]
[1745730725679,0.3996319,94162.0,94161.0,0.2448341]
[1745730726682,0.1873,94162.0,94161.0,0.2448341]
[1745730730384,0.1568,94162.0,94161.0,0.6056341]
[1745730732984,0.1568,94162.0,94161.0,0.2448341]
[1745730747196,0.1568,94162.0,94161.0,0.2781341]
[1745730753690,0.1568,94162.0,94161.0,0.2448341]
[1745730760400,0.1568,94162.0,94161.0,0.2123341]
[1745730767599,0.1568,94162.0,94161.0,0.2427341]
[1745730772204,0.1568,94162.0,94161.0,0.2123341]
[1745730773010,0.1568,94162.0,94160.0,0.3608]
[1745730773323,0.1568,94162.0,94146.0,0.2123595]
[1745730773324,0.2654665,94147.0,94146.0,0.2123595]
[1745730773613,0.2654705,94144.0,94143.0,0.2123739]
[1745730774207,0.332377,94144.0,94143.0,0.2123739]
[1745730775709,0.334377,94144.0,94143.0,0.2123739]
[1745730776707,0.332377,94144.0,94143.0,0.2123739]
[1745730776909,0.334377,94144.0,94143.0,0.2123739]
[1745730777314,0.34515715,94144.0,94143.0,0.2123739]
[1745730777817,0.334377,94144.0,94143.0,0.2123739]
[1745730778319,0.332377,94144.0,94143.0,0.2123739]
[1745730778515,0.334377,94144.0,94143.0,0.2123739]
[1745730778917,0.332377,94144.0,94143.0,0.2123739]
[1745730779119,0.334377,94144.0,94143.0,0.2123739]
[1745730780020,0.34308901,94144.0,94143.0,0.2123739]
[1745730780219,0.34508901,94144.0,94143.0,0.2123739]
[1745730781620,0.34308901,94144.0,94143.0,0.2123739]
[1745730781919,0.34308901,94144.0,94100.0,0.10106269]
[1745730781920,0.2124424,94113.0,94100.0,0.10106269]
[1745730782122,0.2124673,94102.0,94101.0,0.0311]
[1745730783218,0.3324673,94102.0,94101.0,0.0311]
[1745730783418,0.34131926,94102.0,94101.0,0.0311]
[1745730784111,0.34131926,94102.0,94101.0,0.2435695]
[1745730785319,0.2124695,94101.0,94100.0,0.10106269]
[1745730785522,0.2124763,94098.0,94097.0,0.00531364]
[1745730786123,0.3324763,94098.0,94097.0,0.00531364]
[1745730787010,0.2656171,94092.0,94091.0,0.2124918]
[1745730787316,0.6264171,94092.0,94091.0,0.2124918]
[1745730788022,0.6875171,94092.0,94091.0,0.2124918]
[1745730788219,0.8075171,94092.0,94091.0,0.2124918]
[1745730788715,0.8085171,94092.0,94091.0,0.2124918]
[1745730789421,0.2124921,94091.0,94090.0,0.2452944]
[1745730789919,0.2736921,94091.0,94090.0,0.0328]
[1745730790423,0.3936921,94091.0,94090.0,0.2452944]
[1745730790720,0.3936921,94091.0,94090.0,0.0328]
[1745730790924,0.3946921,94091.0,94090.0,0.0328]
[1745730791631,0.2125057,94086.0,94085.0,0.2125055]
[1745730791922,0.2125057,94086.0,94085.0,0.2448055]
[1745730792122,0.3985057,94086.0,94085.0,0.2448055]
[1745730794348,0.3325034,94086.0,94085.0,0.2448055]
[1745730794542,0.3335034,94086.0,94085.0,0.2765055]
[1745730800951,0.121,94086.0,94085.0,0.2765055]
[1745730801255,0.3335034,94086.0,94085.0,0.2765055]
[1745730807156,0.3961034,94086.0,94085.0,0.2765055]
[1745730810259,0.3961034,94086.0,94085.0,0.3069055]
[1745730812776,0.3635034,94086.0,94085.0,0.3069055]
[1745730824174,0.3635034,94086.0,94085.0,0.2752055]
[1745730825667,0.121,94086.0,94085.0,0.2752055]
[1745730825866,0.121,94086.0,94085.0,0.3066055]
[1745730827773,0.3335034,94086.0,94085.0,0.3066055]
[1745730829167,0.3953034,94086.0,94085.0,0.3066055]
[1745730830277,0.1828,94086.0,94085.0,0.3066055]
[1745730830470,0.3953034,94086.0,94085.0,0.3066055]
[1745730830667,0.1828,94086.0,94085.0,0.3066055]
[1745730831074,0.3953034,94086.0,94085.0,0.3066055]
[1745730831480,0.3953034,94086.0,94085.0,0.2752055]
[1745730836871,0.3953034,94086.0,94085.0,0.3078055]
[1745730838681,0.3953034,94086.0,94085.0,0.2448055]
[1745730845788,0.121,94086.0,94085.0,0.2448055]
[1745730845986,0.121,94086.0,94085.0,0.2761055]
[1745730848291,0.3335034,94086.0,94085.0,0.2448055]
[1745730848498,0.121,94086.0,94085.0,0.2448055]
[1745730849290,0.1824,94086.0,94085.0,0.2448055]
[1745730851786,0.1824,94086.0,94085.0,0.6056055]
[1745730860596,0.1824,94086.0,94085.0,0.6382055]
[1745730861695,0.1512,94086.0,94085.0,0.6382055]
[1745730862094,0.121,94086.0,94085.0,0.6382055]
[1745730864597,0.3608,94114.0,94101.0,0.2124695]
[1745730864797,0.0633,94102.0,94101.0,0.2124695]
[1745730864992,0.07113398,94102.0,94101.0,0.2124695]
[1745730865499,0.0633,94102.0,94101.0,0.2429695]
[1745730865798,0.0328,94113.0,94104.0,0.2124628]
[1745730865799,0.2124524,94109.0,94104.0,0.2124628]
[1745730866200,0.0633,94108.0,94104.0,0.2124628]
[1745730866391,0.0633,94108.0,94104.0,0.2748628]
[1745730866701,0.0633,94108.0,94107.0,0.212456]
[1745730867405,0.2757537,94108.0,94107.0,0.212456]
[1745730868698,0.2757537,94108.0,94107.0,0.214456]
[1745730868898,0.28470891,94108.0,94107.0,0.214456]
[1745730869300,0.28370891,94108.0,94107.0,0.214456]
[1745730869504,0.28470891,94108.0,94107.0,0.214456]
[1745730869801,0.28370891,94108.0,94107.0,0.212456]
[1745730869997,0.28470891,94108.0,94107.0,0.214456]
[1745730871399,0.07225521,94108.0,94107.0,0.213456]
[1745730873409,0.28470891,94108.0,94107.0,0.213456]
[1745730875804,0.07225521,94108.0,94107.0,0.213456]
[1745730876901,0.4179,94127.0,94117.0,0.2124334]
[1745730877099,0.2124299,94119.0,94117.0,0.2124334]
[1745730877303,0.5732312,94118.0,94117.0,0.2124334]
[1745730877502,0.6049312,94118.0,94117.0,0.2124334]
[1745730877898,0.61294993,94118.0,94117.0,0.2124334]
[1745730878399,0.61294993,94118.0,94117.0,0.2134334]
[1745730878603,0.61394993,94118.0,94117.0,0.2134334]
[1745730879409,0.61294993,94118.0,94117.0,0.2124334]
[1745730879708,0.61394993,94118.0,94117.0,0.2144334]
[1745730881313,0.40151873,94118.0,94117.0,0.2144334]
[1745730881811,0.43361873,94118.0,94117.0,0.2144334]
[1745730882612,0.43361873,94118.0,94117.0,0.2134334]
[1745730883110,0.64604993,94118.0,94117.0,0.2134334]
[1745730884005,0.28524993,94118.0,94117.0,0.2124334]
[1745730885504,0.28524993,94118.0,94117.0,0.2134334]
[1745730886304,0.28524993,94118.0,94117.0,0.2446334]
[1745730886507,0.28424993,94118.0,94117.0,0.2436334]
[1745730886705,0.28524993,94118.0,94117.0,0.2446334]
[1745730887100,0.07281873,94118.0,94117.0,0.2446334]
[1745730887797,0.28524993,94118.0,94117.0,0.2446334]
[1745730889500,0.001,94118.0,94117.0,0.2446334]
[1745730889701,0.001,94118.0,94117.0,0.2769334]
[1745730891502,0.0325,94119.0,94118.0,0.2124312]
[1745730891700,0.0325,94119.0,94118.0,0.2758312]
[1745730892007,0.0644,94119.0,94118.0,0.2758312]
[1745730892709,0.0654,94119.0,94118.0,0.2768312]
[1745730894205,0.0654,94119.0,94118.0,0.2874009]
[1745730895323,0.0654,94119.0,94118.0,0.2768312]
[1745730898214,0.0644,94119.0,94118.0,0.2768312]
[1745730898416,0.0654,94119.0,94118.0,0.2768312]
[1745730898915,0.0654,94119.0,94118.0,0.6376312]
[1745730899712,0.0654,94119.0,94118.0,0.6053312]
[1745730899912,0.0985,94119.0,94118.0,0.6053312]
[1745730901412,0.0975,94119.0,94118.0,0.6053312]
[1745730901610,0.0985,94119.0,94118.0,0.6053312]
[1745730906512,0.0975,94119.0,94118.0,0.6043312]
[1745730906708,0.0985,94119.0,94118.0,0.6053312]
[1745730908621,0.0975,94119.0,94118.0,0.6043312]
[1745730908816,0.0985,94119.0,94118.0,0.6053312]
[1745730909223,0.0975,94119.0,94118.0,0.6043312]
[1745730909427,0.0985,94119.0,94118.0,0.6053312]
[1745730912423,0.0975,94119.0,94118.0,0.6043312]
[1745730912628,0.0985,94119.0,94118.0,0.6053312]
[1745730914921,0.0644,94119.0,94118.0,0.6043312]
[1745730915126,0.0654,94119.0,94118.0,0.6053312]
[1745730916631,0.0644,94119.0,94118.0,0.6043312]
[1745730916815,0.0654,94119.0,94118.0,0.6053312]
[1745730918128,0.0644,94119.0,94118.0,0.2435312]
[1745730918424,0.0654,94119.0,94118.0,0.6053312]
[1745730919227,0.0654,94119.0,94118.0,0.6043312]
[1745730919424,0.0654,94119.0,94118.0,0.6053312]
[1745730922724,0.001,94119.0,94118.0,0.6053312]
[1745730923026,0.0052,94128.0,94124.0,0.053104]
[1745730923228,0.0328,94142.0,94127.0,0.3608]
[1745730923422,0.0328,94142.0,94141.0,0.2123793]
[1745730923423,0.07189109,94142.0,94141.0,0.2123793]
[1745730923830,0.07189109,94142.0,94141.0,0.2454793]
[1745730925528,0.07389109,94142.0,94141.0,0.2464793]
[1745730926022,0.07289109,94142.0,94141.0,0.2464793]
[1745730926533,0.0338,94142.0,94141.0,0.2464793]
[1745730926734,0.0338,94142.0,94141.0,0.2766793]
[1745730938736,0.0338,94142.0,94141.0,0.6374793]
[1745730942139,0.0338,94142.0,94141.0,0.6072793]
[1745730942738,0.001,94142.0,94141.0,0.6072793]
[1745730945647,0.2123371,94160.0,94146.0,0.0530914]
[1745730945848,0.0638,94150.0,94149.0,0.2123612]
[1745730946052,1e-08,94151.0,94150.0,0.2123589]
[1745730946248,1e-08,94151.0,94150.0,0.2427589]
[1745730947639,0.00100001,94151.0,94150.0,0.2427589]
[1745730948154,1e-08,94151.0,94150.0,0.2427589]
[1745730948348,0.00100001,94151.0,94150.0,0.2437589]
[1745730953452,0.00100001,94151.0,94150.0,0.9653589]
[1745730958053,0.0313,94155.0,94154.0,0.2123499]
[1745730958251,0.0052,94158.0,94150.0,0.9123012]
[1745730958252,0.0052,94158.0,94157.0,0.2123432]
[1745730958652,1e-07,94158.0,94157.0,0.2123432]
[1745730958953,1e-07,94158.0,94157.0,0.2452432]
[1745730959354,1e-07,94158.0,94157.0,0.2462432]
[1745730959950,1e-07,94158.0,94157.0,0.3524472]
[1745730960854,0.00016,94165.0,94164.0,0.2123274]
[1745730961053,0.00016,94165.0,94164.0,0.6401674]
[1745730961248,0.0974,94174.0,94173.0,0.2123071]
[1745730961449,0.0974,94174.0,94173.0,0.5731071]
[1745730962458,0.1004,94174.0,94173.0,0.5741071]
[1745730977067,0.1004,94174.0,94173.0,0.2133071]
[1745730977263,0.1004,94174.0,94173.0,0.5741071]
[1745730977666,0.0672,94174.0,94173.0,0.5741071]
[1745730987774,0.0672,94174.0,94173.0,0.6054071]
[1745730989169,0.0672,94174.0,94173.0,0.6375071]
[1745730992479,0.0343,94174.0,94173.0,0.6375071]
[1745730994574,0.003,94174.0,94173.0,0.6375071]
[1745730996374,0.00016,94179.0,94178.0,0.2122958]
[1745730996573,0.0013,94181.0,94180.0,0.2122913]
[1745730997269,0.0013,94181.0,94180.0,0.2736913]
[1745730997571,0.0053,94181.0,94180.0,0.2746913]
[1745730998970,0.0013,94181.0,94180.0,0.2736913]
[1745730999171,0.0023,94181.0,94180.0,0.2736913]
[1745731005787,0.3608,94209.0,94199.0,0.2122485]
[1745731005992,0.0304,94208.0,94199.0,0.2122485]
[1745731006485,0.00801357,94201.0,94199.0,0.2122485]
[1745731006985,0.1304,94200.0,94199.0,0.2122485]
[1745731007182,0.1941,94200.0,94199.0,0.2122485]
[1745731008175,0.1971,94200.0,94199.0,0.2122485]
[1745731023688,0.1971,94200.0,94199.0,0.2433485]
[1745731024499,0.0348918,94200.0,94199.0,0.2433485]
[1745731024794,0.0052,94218.0,94210.0,0.2122449]
[1745731024995,0.0052,94218.0,94210.0,0.5730449]
[1745731025183,0.0052,94218.0,94210.0,0.6382449]
[1745731026286,0.0033,94211.0,94210.0,0.6382449]
[1745731033700,0.0033,94211.0,94210.0,0.6058449]
[1745731033889,0.0033,94211.0,94210.0,0.0328]
[1745731034195,0.2122478,94209.0,94208.0,0.2122472]
[1745731034396,0.0909,94210.0,94209.0,0.2122472]
[1745731034699,0.0608,94210.0,94209.0,0.2122472]
[1745731035995,0.0618,94210.0,94209.0,0.2122472]
[1745731039801,0.4226,94210.0,94185.0,0.4138752]
[1745731040005,0.2123013,94185.0,94174.0,0.42776]
[1745731040194,0.0530791,94179.0,94166.0,0.0326]
[1745731040395,0.2123317,94175.0,94174.0,0.2123194]
[1745731040906,0.2123508,94167.0,94166.0,0.2123423]
[1745731041104,0.212338,94169.0,94168.0,0.2123373]
[1745731041597,0.0530811,94175.0,94174.0,0.2123238]
[1745731041805,0.2443238,94175.0,94174.0,0.2163238]
[1745731042100,1.1314378,94175.0,94174.0,0.004]
[1745731042409,0.2123283,94173.0,94172.0,0.212329]
[1745731042802,0.3185163,94173.0,94172.0,0.212329]
[1745731044698,0.3185163,94173.0,94172.0,0.215329]
[1745731046598,0.6793163,94173.0,94172.0,0.215329]
[1745731053505,0.6793163,94173.0,94172.0,0.003]
[1745731055007,0.7118163,94173.0,94172.0,0.003]